lending/lending_fUSD_20260124
["ID","MTS","AMOUNT","RATE_DAILY","PERIOD"]
[403168574,1769237313602,408.19665354,0.00013287,2]
[403168575,1769237313846,500.0,0.00013287,2]
[403168576,1769237314095,500.0,0.00013287,2]
[403168577,1769237314189,500.0,0.00013287,2]
[403168578,1769237314233,302.79774439,0.00013287,2]
[403168579,1769237319400,347.45,0.00012483,2]
[403168580,1769237324325,500.0,0.00013287,2]
[403168581,1769237324368,500.0,0.00013287,2]
[403168582,1769237324415,500.0,0.00013287,2]
[403168583,1769237324452,500.0,0.00013287,2]
[403168584,1769237324514,500.0,0.00013287,2]
[403168585,1769237324549,235.85821617,0.00013287,2]
[403168586,1769237324571,264.14178383,0.00013287,2]
[403168587,1769237324608,500.0,0.00013287,2]
[403168588,1769237324647,500.0,0.00013287,2]
[403168589,1769237324682,500.0,0.00013287,2]
[403168590,1769237324733,467.98023948,0.00013287,2]
[403168591,1769237324781,500.0,0.00013287,2]
[403168592,1769237324838,618.42380976,0.00013287,2]
[403168593,1769237324882,500.0,0.00013287,2]
[403168594,1769237324920,500.0,0.00013287,2]
[403168595,1769237324967,500.0,0.00013287,2]
[403168596,1769237325024,500.0,0.00013287,2]
[403168597,1769237325075,316.92139241,0.00013287,2]
[403168598,1769237325115,500.0,0.00013287,2]
[403168599,1769237325158,503.47765879,0.00013287,2]
[403168600,1769237325211,500.0,0.00013287,2]
[403168601,1769237325258,500.0,0.00013287,2]
[403168602,1769237325311,500.0,0.00013287,2]
[403168603,1769237325361,500.0,0.00013287,2]
[403168604,1769237325408,500.0,0.00013287,2]
[403168605,1769237325453,500.0,0.00013287,2]
[403168606,1769237325500,329.06511573,0.00013287,2]
[403168607,1769237325527,170.93488427,0.00013287,2]
[403168608,1769237325577,500.0,0.00013287,2]
[403168609,1769237325628,500.0,0.00013287,2]
[403168610,1769237325673,500.0,0.00013287,2]
[403168611,1769237325718,500.0,0.00013287,2]
[403168612,1769237325771,500.0,0.00013287,2]
[403168613,1769237325820,500.0,0.00013287,2]
[403168614,1769237325869,500.0,0.00013287,2]
[403168615,1769237325913,500.0,0.00013287,2]
[403168616,1769237325958,500.0,0.00013287,2]
[403168617,1769237326008,500.0,0.00013287,2]
[403168618,1769237326062,407.34003239,0.00013287,2]
[403168619,1769237326108,500.0,0.00013287,2]
[403168620,1769237326158,500.0,0.00013287,2]
[403168621,1769237326206,500.0,0.00013287,2]
[403168622,1769237326250,500.0,0.00013287,2]
[403168623,1769237326297,500.0,0.00013287,2]
[403168624,1769237326353,500.0,0.00013287,2]
[403168625,1769237326398,500.0,0.00013287,2]
[403168626,1769237326439,500.0,0.00013287,2]
[403168627,1769237326486,421.73508334,0.00013287,2]
[403168628,1769237326513,78.26491666,0.00013287,2]
[403168629,1769237326553,500.0,0.00013287,2]
[403168630,1769237326602,500.0,0.00013287,2]
[403168631,1769237326642,500.0,0.00013287,2]
[403168632,1769237327000,500.0,0.00013287,2]
[403168633,1769237341288,300.0,0.00013287,2]
[403168634,1769237400364,1112.9359711,0.00013288,2]
[403168635,1769237401212,300.0,0.00013287,2]
[403168636,1769237401374,1200.0,0.00013287,2]
[403168637,1769237401466,300.0,0.00013287,2]
[403168638,1769237404204,259.0,0.00013288,2]
[403168639,1769237410177,500.0,0.00013287,2]
[403168640,1769237410218,500.0,0.00013287,2]
[403168641,1769237410264,500.0,0.00013287,2]
[403168642,1769237410305,500.0,0.00013287,2]
[403168643,1769237410345,500.0,0.00013287,2]
[403168644,1769237412073,780.10967584,0.00013188,2]
[403168645,1769237417030,151.0,0.00013285,2]
[403168646,1769237424264,3096.96435306,0.00013288,2]
[403168647,1769237424288,6903.03564694,0.00013288,2]
[403168654,1769237431369,-670.50807902,0.00013288,2]
[403168655,1769237431504,-999.0,0.00013288,2]
[403168656,1769237431630,-2379.46437723,0.00013288,2]
[403168657,1769237431641,-311439.84834126,0.00013288,2]
[403168658,1769237431653,-69327.96338312,0.00013288,2]
[403168659,1769237431664,-37804.70875657,0.00013288,2]
[403168660,1769237431675,-74735.4059603,0.00013288,2]
[403168661,1769237431690,-508.0,0.00013288,2]
[403168667,1769237433532,2500.0,0.00013188,2]
[403168668,1769237435423,596.97435306,0.00013288,2]
[403168669,1769237435446,9403.02564694,0.00013288,2]
[403168670,1769237437505,-11489.70347207,0.00013288,2]
[403168671,1769237437617,-335.09275207,0.00013288,2]
[403168672,1769237437696,-4478.58728033,0.00013288,2]
[403168718,1769237440379,-0.04668788,0.00013288,2]
[403168722,1769237442640,-5000.0,0.00013288,2]
[403168724,1769237443962,391.7365885,0.00013188,2]
[403168725,1769237444202,205.24776456,0.00013288,2]
[403168726,1769237444224,9794.75223544,0.00013288,2]
[403168729,1769237454639,205.25776456,0.00013288,2]
[403168730,1769237454664,9794.74223544,0.00013288,2]
[403168731,1769237462815,150.0,0.00013287,2]
[403168732,1769237463530,5533.0,0.000149,5]
[403168733,1769237463623,55.26776456,0.00013287,2]
[403168734,1769237463648,244.73223544,0.00013287,2]
[403168735,1769237463751,5533.0,0.000147,3]
[403168736,1769237464451,211.10537828,0.00013288,2]
[403168737,1769237465001,183.95516542,0.00013288,2]
[403168738,1769237465126,177.50059275,0.00013288,2]
[403168739,1769237476629,9182.71662811,0.00013278,2]
[403168740,1769237476659,10000.01,0.00013278,2]
[403168741,1769237476688,10000.01,0.00013278,2]
[403168742,1769237476717,10000.01,0.00013278,2]
[403168743,1769237476745,10000.01,0.00013278,2]
[403168744,1769237476773,10000.01,0.00013278,2]
[403168745,1769237476801,10000.01,0.00013278,2]
[403168746,1769237476835,10000.01,0.00013278,2]
[403168747,1769237476863,10000.01,0.00013278,2]
[403168748,1769237482336,500.0,0.00012482,2]
[403168749,1769237495272,5533.0,0.000148,5]
[403168750,1769237495516,5533.0,0.000146,3]
[403168751,1769237496939,2172.0,0.00013235,2]
[403168752,1769237506554,-3001.27492735,0.00013278,2]
[403168753,1769237506935,-3997.4601453,0.00013278,2]
[403168754,1769237518278,200.44,0.00013288,2]
[403168755,1769237521278,300.0,0.00013287,2]
[403168756,1769237526150,1504.6497094,0.00013188,2]
[403168757,1769237526174,3215.73578346,0.00013188,2]
[403168758,1769237528077,857.52277717,0.000148,5]
[403168759,1769237528108,4675.47722283,0.000148,5]
[403168760,1769237528275,5533.0,0.000146,3]
[403168761,1769237534380,6784.27421654,0.00013188,2]
[403168762,1769237534403,8984.67928346,0.00013188,2]
[403168763,1769237542393,151.0,0.00013285,2]
[403168764,1769237542810,151.0,0.00013285,2]
[403168765,1769237550936,632.05046684,0.00013278,2]
[403168766,1769237571231,4107.3,0.00012831,2]
[403168767,1769237571421,4117.5967,0.00013188,2]
[403168768,1769237577731,841.06283316,0.00013188,2]
[403168769,1769237577756,10000.01,0.00013188,2]
[403168770,1769237577779,10000.01,0.00013188,2]
[403168771,1769237577802,10000.01,0.00013188,2]
[403168772,1769237577825,10000.01,0.00013188,2]
[403168773,1769237577849,10000.01,0.00013188,2]
[403168774,1769237577874,10000.01,0.00013188,2]
[403168775,1769237577896,8874.12976684,0.00013188,2]
[403168776,1769237583931,2500.0,0.00013188,2]
[403168777,1769237588216,5000.0,0.000145,3]
[403168778,1769237591397,5533.0,0.000147,5]
[403168779,1769237591625,5533.0,0.000145,3]
[403168780,1769237603722,6811.54255309,0.00013188,2]
[403168781,1769237616122,-216.85110539,0.00013278,2]
[403168782,1769237616149,-951.0,0.00013287,2]
[403168783,1769237617338,5000.0,0.000145,3]
[403168784,1769237622974,5203.0,0.000147,5]
[403168785,1769237626762,529.0755,0.00013188,2]
[403168786,1769237632882,237.0302,0.00013188,2]
[403168787,1769237634792,1000.0,0.000145,3]
[403168788,1769237641307,300.0,0.00013287,2]
[403168789,1769237641683,300.0,0.00013287,2]
[403168790,1769237642502,150.0,0.00013287,2]
[403168791,1769237644549,300.0,0.00013287,2]
[403168792,1769237663620,151.0,0.00013285,2]
[403168793,1769237664244,151.0,0.00013285,2]
[403168794,1769237664615,151.0,0.00013286,2]
[403168795,1769237700941,1349.0,0.000132,2]
[403168796,1769237700975,-915.0,0.00013288,2]
[403168797,1769237701240,300.0,0.00013287,2]
[403168798,1769237701472,300.0,0.00013287,2]
[403168799,1769237701520,1200.0,0.00013287,2]
[403168800,1769237712108,62522.52277717,0.000142,3]
[403168801,1769237712137,40933.11224476,0.000142,3]
[403168802,1769237712163,92351.74497807,0.000142,3]
[403168803,1769237713240,151.0,0.00013285,2]
[403168804,1769237721793,2095.20208922,0.00013188,2]
[403168805,1769237721817,379.50601078,0.00013188,2]
[403168806,1769237733640,2500.0,0.00013188,2]
[403168807,1769237768242,915.0,7.945e-05,2]
[403168808,1769237813003,4453.1838,0.00013188,2]
[403168809,1769237822359,300.0,0.00013287,2]
[403168810,1769237822402,150.0,0.00013287,2]
[403168811,1769237826782,322.6107,0.00013288,2]
[403168812,1769237828388,200.0,0.00013288,2]
[403168813,1769237830951,779.70948922,0.00013288,2]
[403168814,1769237830976,74.54942558,0.00013288,2]
[403168815,1769237831580,200.0,0.00013288,2]
[403168816,1769237831733,500.0,0.00013288,2]
[403168817,1769237831771,151.0,0.00013288,2]
[403168818,1769237832328,500.0,0.00013288,2]
[403168819,1769237832471,151.0,0.00013288,2]
[403168820,1769237832708,500.0,0.00013288,2]
[403168821,1769237832920,500.0,0.00013288,2]
[403168822,1769237833063,151.0,0.00013288,2]
[403168823,1769237833312,500.0,0.00013288,2]
[403168824,1769237833525,500.0,0.00013288,2]
[403168825,1769237833666,151.0,0.00013288,2]
[403168826,1769237833915,500.0,0.00013288,2]
[403168827,1769237834062,170.26622743,0.00013288,2]
[403168828,1769237834130,500.0,0.00013288,2]
[403168829,1769237834272,151.0,0.00013288,2]
[403168830,1769237834509,500.0,0.00013288,2]
[403168831,1769237834687,152.13538667,0.00013188,2]
[403168832,1769237834735,500.0,0.00013288,2]
[403168833,1769237834896,151.0,0.00013288,2]
[403168834,1769237834983,500.0,0.00013288,2]
[403168835,1769237835112,500.0,0.00013288,2]
[403168836,1769237835383,500.0,0.00013288,2]
[403168837,1769237835532,151.0,0.00013288,2]
[403168838,1769237835987,500.0,0.00013288,2]
[403168839,1769237836046,500.0,0.00013288,2]
[403168840,1769237836131,500.0,0.00013288,2]
[403168841,1769237836328,151.0,0.00013288,2]
[403168842,1769237836396,500.0,0.00013288,2]
[403168843,1769237836460,500.0,0.00013288,2]
[403168844,1769237836658,500.0,0.00013288,2]
[403168845,1769237836748,151.0,0.00013288,2]
[403168846,1769237838782,-500.0,0.00013288,2]
[403168847,1769237838816,-500.0,0.00013288,2]
[403168848,1769237838844,-500.0,0.00013288,2]
[403168849,1769237838872,-151.0,0.00013288,2]
[403168850,1769237838901,-500.0,0.00013288,2]
[403168851,1769237838932,-500.0,0.00013288,2]
[403168852,1769237838962,-500.0,0.00013288,2]
[403168853,1769237838991,-151.0,0.00013288,2]
[403168854,1769237839024,-500.0,0.00013288,2]
[403168855,1769237839055,-324.93386648,0.00013288,2]
[403168856,1769237839131,-151.0,0.00013288,2]
[403168857,1769237839746,-500.0,0.00013288,2]
[403168858,1769237839965,-151.0,0.00013288,2]
[403168859,1769237841531,-500.0,0.00013288,2]
[403168860,1769237841564,-151.0,0.00013288,2]
[403168861,1769237841592,-500.0,0.00013288,2]
[403168862,1769237841623,-151.0,0.00013288,2]
[403168863,1769237841651,-500.0,0.00013288,2]
[403168864,1769237841680,-151.0,0.00013288,2]
[403168865,1769237841710,-500.0,0.00013288,2]
[403168866,1769237841938,-151.0,0.00013288,2]
[403168867,1769237842821,-151.0,0.00013288,2]
[403168868,1769237850046,-174.61919141,0.00013288,2]
[403168869,1769237850078,-151.0,0.00013288,2]
[403168870,1769237850107,-151.0,0.00013288,2]
[403168871,1769237850135,-151.0,0.00013288,2]
[403168872,1769237850163,-200.0,0.00013288,2]
[403168873,1769237850193,-151.0,0.00013288,2]
[403168874,1769237850223,-151.0,0.00013288,2]
[403168875,1769237850254,-151.0,0.00013288,2]
[403168876,1769237850283,-151.0,0.00013288,2]
[403168877,1769237850314,-151.0,0.00013288,2]
[403168878,1769237850344,-151.0,0.00013288,2]
[403168879,1769237850373,-500.0,0.00013288,2]
[403168880,1769237850403,-151.0,0.00013288,2]
[403168881,1769237850431,-151.0,0.00013288,2]
[403168882,1769237850460,-151.0,0.00013288,2]
[403168883,1769237850678,-151.0,0.00013288,2]
[403168884,1769237851641,-9378.24389744,0.00013288,2]
[403168885,1769237853708,-151.0,0.00013288,2]
[403168886,1769237853738,-217.19419191,0.00013288,2]
[403168887,1769237853790,-9263.62161618,0.00013288,2]
[403168888,1769237853820,-10000.01,0.00013288,2]
[403168889,1769237853977,-10000.01,0.00013288,2]
[403168890,1769237854265,-10000.01,0.00013288,2]
[403168891,1769237855594,2038.26,0.00012482,2]
[403168892,1769237855786,2038.26,0.00012509,2]
[403168893,1769237856307,2038.26,0.00012535,2]
[403168894,1769237856367,2038.26,0.00012561,2]
[403168895,1769237856419,2038.26,0.00012588,2]
[403168896,1769237856618,2038.26,0.00012614,2]
[403168897,1769237856808,2038.26,0.0001264,2]
[403168898,1769237857004,2038.26,0.00012666,2]
[403168899,1769237857268,2038.26,0.00012693,2]
[403168900,1769237857467,2038.26,0.00012719,2]
[403168901,1769237857697,2038.26,0.00012745,2]
[403168902,1769237857907,2038.26,0.00012771,2]
[403168903,1769237858485,2038.26,0.00012798,2]
[403168904,1769237858690,2038.26,0.00012824,2]
[403168905,1769237858880,2038.26,0.0001285,2]
[403168906,1769237859097,2038.26,0.00012877,2]
[403168907,1769237859763,2038.26,0.00012903,2]
[403168908,1769237859804,2038.26,0.00012929,2]
[403168909,1769237859860,2038.26,0.00012955,2]
[403168910,1769237859905,2038.26,0.00012982,2]
[403168911,1769237879294,3385.3,0.00013235,2]
[403168912,1769237881319,-151.0,0.00013288,2]
[403168913,1769237881350,-151.0,0.00013288,2]
[403168914,1769237881381,-151.0,0.00013288,2]
[403168915,1769237881415,-151.0,0.00013288,2]
[403168916,1769237881452,-151.0,0.00013288,2]
[403168917,1769237881483,-151.0,0.00013288,2]
[403168918,1769237881512,-151.0,0.00013288,2]
[403168919,1769237881542,-151.0,0.00013288,2]
[403168920,1769237881574,-151.0,0.00013288,2]
[403168921,1769237881605,-151.0,0.00013288,2]
[403168922,1769237881636,-151.0,0.00013288,2]
[403168923,1769237881859,-300.0,0.00013287,2]
[403168924,1769237881868,-6378.01,0.00013288,2]
[403168925,1769237882907,2500.0,0.00013188,2]
[403168926,1769237887137,-10000.01,0.00013288,2]
[403168928,1769237913813,2000.0,0.00014,3]
[403168929,1769237914213,2099.131432,0.0001322,2]
[403168930,1769237924824,200.0,0.00012766,2]
[403168931,1769237934083,201.42,0.00012619,2]
[403168932,1769237961424,2941.14,0.00012619,2]
[403168933,1769237976064,800.0,0.00012693,2]
[403168934,1769237992472,3758.318568,0.00013189,2]
[403168935,1769237992505,2372.06972979,0.00013189,2]
[403168938,1769238036438,5060.00655466,0.00013188,2]
[403168941,1769238038637,167.56639458,0.00013187,2]
[403168942,1769238044372,-1200.0,0.00013287,2]
[403168943,1769238044402,-300.0,0.00013287,2]
[403168944,1769238044433,-1200.0,0.00013287,2]
[403168945,1769238044466,-300.0,0.00013287,2]
[403168946,1769238044496,-150.0,0.00013287,2]
[403168947,1769238044527,-300.0,0.00013287,2]
[403168948,1769238044556,-259.0,0.00013287,2]
[403168949,1769238044589,-500.0,0.00013287,2]
[403168950,1769238044623,-320.63556039,0.00013287,2]
[403168951,1769238044654,-304.41790839,0.00013287,2]
[403168952,1769238044948,-500.0,0.00013287,2]
[403168953,1769238044982,-500.0,0.00013287,2]
[403168954,1769238045016,-500.0,0.00013287,2]
[403168955,1769238045044,-188.2522023,0.00013287,2]
[403168956,1769238045078,-500.0,0.00013287,2]
[403168957,1769238045112,-500.0,0.00013287,2]
[403168958,1769238045142,-500.0,0.00013287,2]
[403168959,1769238045172,-365.48136679,0.00013287,2]
[403168960,1769238045206,-500.0,0.00013287,2]
[403168961,1769238045240,-500.0,0.00013287,2]
[403168962,1769238045274,-392.54286182,0.00013287,2]
[403168963,1769238045381,167.56639458,0.00013188,2]
[403168964,1769238047263,-107.45713818,0.00013287,2]
[403168965,1769238047301,-500.0,0.00013287,2]
[403168966,1769238047340,-209.80240992,0.00013287,2]
[403168967,1769238047377,-500.0,0.00013287,2]
[403168968,1769238047414,-500.0,0.00013287,2]
[403168969,1769238047450,-500.0,0.00013287,2]
[403168970,1769238047486,-500.0,0.00013287,2]
[403168971,1769238047521,-500.0,0.00013287,2]
[403168972,1769238047557,-500.0,0.00013287,2]
[403168973,1769238047592,-500.0,0.00013287,2]
[403168974,1769238047627,-500.0,0.00013287,2]
[403168975,1769238050385,-500.0,0.00013287,2]
[403168976,1769238050415,-371.2002617,0.00013287,2]
[403168979,1769238053352,1051.78986035,0.00013287,2]
[403168980,1769238053399,537.74610695,0.00013287,2]
[403168981,1769238054549,268.87305348,0.00013287,2]
[403168982,1769238054586,525.89493018,0.00013287,2]
[403168983,1769238055556,262.94746509,0.00013287,2]
[403168984,1769238057434,500.0,0.00013287,2]
[403168985,1769238066524,200.0,0.00012643,2]
[403168987,1769238091317,4910.35806055,0.00013278,2]
[403168988,1769238091342,10000.01,0.00013278,2]
[403168989,1769238141270,700.0,0.000128,4]
[403168990,1769238143387,1400.0,0.000129,4]
[403168991,1769238146309,3548.25502193,0.000138,5]
[403168992,1769238146337,1984.74497807,0.000138,5]
[403168993,1769238150550,25000.0,0.00012866,3]
[403168994,1769238153473,624.2693122,0.00012865,2]
[403168995,1769238161220,7364.0,0.00013188,2]
[403168996,1769238168707,747.16306285,0.00012858,3]
[403168997,1769238168731,24252.83693715,0.00012858,3]
[403168998,1769238187390,25000.0,0.00012849,3]
[403168999,1769238190225,790.9638775,0.00012865,2]
[403169000,1769238190266,790.9638775,0.00012865,2]
[403169001,1769238190306,429.8129328,0.00012865,2]
[403169002,1769238190333,361.1509447,0.00012865,2]
[403169003,1769238190374,790.9638775,0.00012865,2]
[403169004,1769238190417,790.9638775,0.00012865,2]
[403169005,1769238190460,790.9638775,0.00012865,2]
[403169006,1769238190502,790.9638775,0.00012865,2]
[403169007,1769238190554,790.9638775,0.00012865,2]
[403169008,1769238190595,790.9638775,0.00012865,2]
[403169009,1769238190645,790.9638775,0.00012865,2]
[403169010,1769238190689,790.9638775,0.00012865,2]
[403169011,1769238190733,790.9638775,0.00012865,2]
[403169012,1769238190776,790.9638775,0.00012865,2]
[403169013,1769238190818,790.9638775,0.00012865,2]
[403169014,1769238190868,790.9638775,0.00012865,2]
[403169015,1769238190909,147.2925253,0.00012865,2]
[403169016,1769238190936,643.6713522,0.00012865,2]
[403169017,1769238190980,790.9638775,0.00012865,2]
[403169018,1769238191022,790.9638775,0.00012865,2]
[403169019,1769238191064,790.9638775,0.00012865,2]
[403169020,1769238191132,790.9638775,0.00012865,2]
[403169021,1769238191174,790.9638775,0.00012865,2]
[403169022,1769238191214,790.9638775,0.00012865,2]
[403169023,1769238191269,790.9638775,0.00012865,2]
[403169024,1769238191309,790.9638775,0.00012865,2]
[403169025,1769238191364,790.9638775,0.00012865,2]
[403169026,1769238191414,790.9638775,0.00012865,2]
[403169027,1769238191457,790.9638775,0.00012865,2]
[403169028,1769238191520,655.7359953,0.00012865,2]
[403169029,1769238191548,135.2278822,0.00012865,2]
[403169030,1769238191596,790.9638775,0.00012865,2]
[403169031,1769238191639,790.9638775,0.00012865,2]
[403169032,1769238191686,790.9638775,0.00012865,2]
[403169033,1769238191730,790.9638775,0.00012865,2]
[403169034,1769238191776,790.9638775,0.00012865,2]
[403169035,1769238191816,790.9638775,0.00012865,2]
[403169036,1769238191863,790.9638775,0.00012865,2]
[403169037,1769238191917,790.9638775,0.00012865,2]
[403169038,1769238191971,790.9638775,0.00012865,2]
[403169039,1769238192017,790.9638775,0.00012865,2]
[403169040,1769238192058,790.9638775,0.00012865,2]
[403169041,1769238192099,790.9638775,0.00012865,2]
[403169042,1769238192144,373.2155878,0.00012865,2]
[403169043,1769238192173,417.7482897,0.00012865,2]
[403169044,1769238192218,790.9638775,0.00012865,2]
[403169045,1769238192264,790.9638775,0.00012865,2]
[403169046,1769238192312,790.9638775,0.00012865,2]
[403169047,1769238193071,790.9638775,0.00012865,2]
[403169048,1769238193114,790.9638775,0.00012865,2]
[403169049,1769238193162,790.9638775,0.00012865,2]
[403169050,1769238193209,790.9638775,0.00012865,2]
[403169051,1769238193258,790.9638775,0.00012865,2]
[403169052,1769238193299,790.9638775,0.00012865,2]
[403169053,1769238193339,790.9638775,0.00012865,2]
[403169054,1769238193394,790.9638775,0.00012865,2]
[403169055,1769238193451,790.9638775,0.00012865,2]
[403169056,1769238193495,90.6951803,0.00012865,2]
[403169057,1769238193523,700.2686972,0.00012865,2]
[403169058,1769238193566,790.9638775,0.00012865,2]
[403169059,1769238200399,790.9638775,0.00012865,2]
[403169060,1769238200458,790.9638775,0.00012865,2]
[403169061,1769238200505,790.9638775,0.00012865,2]
[403169062,1769238200554,790.9638775,0.00012865,2]
[403169063,1769238200607,790.9638775,0.00012865,2]
[403169064,1769238200663,790.9638775,0.00012865,2]
[403169065,1769238200718,790.9638775,0.00012865,2]
[403169066,1769238200776,790.9638775,0.00012865,2]
[403169067,1769238200826,790.9638775,0.00012865,2]
[403169068,1769238200884,790.9638775,0.00012865,2]
[403169069,1769238200934,599.1386503,0.00012865,2]
[403169070,1769238200969,191.8252272,0.00012865,2]
[403169071,1769238201016,790.9638775,0.00012865,2]
[403169072,1769238201072,790.9638775,0.00012865,2]
[403169073,1769238201119,790.9638775,0.00012865,2]
[403169074,1769238201178,790.9638775,0.00012865,2]
[403169075,1769238201227,790.9638775,0.00012865,2]
[403169076,1769238201275,790.9638775,0.00012865,2]
[403169077,1769238201327,790.9638775,0.00012865,2]
[403169078,1769238201376,790.9638775,0.00012865,2]
[403169079,1769238201454,790.9638775,0.00012865,2]
[403169080,1769238201506,790.9638775,0.00012865,2]
[403169081,1769238201560,790.9638775,0.00012865,2]
[403169082,1769238201618,790.9638775,0.00012865,2]
[403169083,1769238201671,316.6182428,0.00012865,2]
[403169084,1769238201705,474.3456347,0.00012865,2]
[403169085,1769238201768,790.9638775,0.00012865,2]
[403169086,1769238201821,790.9638775,0.00012865,2]
[403169087,1769238202251,790.9638775,0.00012865,2]
[403169088,1769238202320,790.9638775,0.00012865,2]
[403169089,1769238202380,790.9638775,0.00012865,2]
[403169090,1769238202429,790.9638775,0.00012865,2]
[403169091,1769238202485,790.9638775,0.00012865,2]
[403169092,1769238202533,790.9638775,0.00012865,2]
[403169093,1769238202598,790.9638775,0.00012865,2]
[403169094,1769238202651,790.9638775,0.00012865,2]
[403169095,1769238206226,25000.0,0.0001284,3]
[403169096,1769238208237,5533.0,0.000137,5]
[403169097,1769238208478,1561.0,0.000135,3]
[403169098,1769238209503,452.5683,0.00013188,2]
[403169099,1769238215691,237.0302,0.00013188,2]
[403169100,1769238224991,24186.16306285,0.00012831,3]
[403169101,1769238225014,813.83693715,0.00012831,3]
[403169102,1769238244378,25000.0,0.00012822,3]
[403169103,1769238255075,500.0,0.00013187,2]
[403169104,1769238263078,25000.0,0.00012814,3]
[403169105,1769238273981,9500.01,0.00011233,2]
[403169106,1769238274011,10342.89,0.00011233,2]
[403169107,1769238275574,110296.17130823,0.00013188,2]
[403169108,1769238320131,500.0,0.00012865,2]
[403169109,1769238320912,209.34439288,0.00012865,2]
[403169110,1769238325922,-1200.0,0.00013187,2]
[403169111,1769238325952,-300.0,0.00013187,2]
[403169112,1769238361317,300.0,0.00013187,2]
[403169113,1769238362415,150.0,0.00013187,2]
[403169114,1769238363508,246.0,0.00013187,2]
[403169115,1769238363546,300.0,0.00013187,2]
[403169116,1769238371336,1000.0,0.00012425,2]
[403169117,1769238378704,5004.01,0.00013088,2]
[403169118,1769238378732,896.54565374,0.00013088,2]
[403169119,1769238383546,500.0,0.00013187,2]
[403169120,1769238420744,1200.0,0.000127,4]
[403169121,1769238422820,2500.0,0.000128,4]
[403169122,1769238424910,3800.0,0.000129,4]
[403169123,1769238427612,330.68975213,0.00013187,2]
[403169124,1769238427655,500.0,0.00013187,2]
[403169125,1769238427696,432.59934442,0.00013187,2]
[403169126,1769238427820,471.47981949,0.00013187,2]
[403169127,1769238428292,500.0,0.00013187,2]
[403169128,1769238428341,500.0,0.00013187,2]
[403169129,1769238432762,1035.51509548,0.00013088,2]
[403169130,1769238435221,500.0,0.000176,30]
[403169131,1769238435315,800.0,0.000176,30]
[403169132,1769238435548,500.0,0.000176,30]
[403169133,1769238435586,266.54724609,0.00013187,2]
[403169134,1769238435635,500.0,0.00013187,2]
[403169135,1769238435701,202.88619949,0.00013187,2]
[403169136,1769238436013,548.79970243,0.00013,2]
[403169137,1769238438281,1035.51509546,0.00013139,2]
[403169138,1769238440215,500.0,0.000176,30]
[403169139,1769238440688,500.0,0.000176,30]
[403169140,1769238441182,500.0,0.00013,2]
[403169141,1769238441702,653.04580214,0.00013,2]
[403169142,1769238451020,500.0,0.000176,30]
[403169143,1769238451795,500.0,0.000176,30]